fUST/lending_fUST_20251010
["ID","MTS","AMOUNT","RATE_DAILY","PERIOD"]
[390427818,1760043044308,-738.96,0.00016438,2]
[390427820,1760043044318,-500.0,0.00016438,2]
[390427822,1760043044327,-500.0,0.00016438,2]
[390427824,1760043044336,-500.0,0.00016438,2]
[390427826,1760043044345,-500.0,0.00016438,2]
[390427828,1760043044354,-500.0,0.00016438,2]
[390427830,1760043044363,-500.0,0.00016438,2]
[390427832,1760043044372,-500.0,0.00016438,2]
[390427834,1760043044381,-500.0,0.00016438,2]
[390427836,1760043044390,-3237.99,0.00016438,2]
[390427838,1760043044400,-500.0,0.00016438,2]
[390427840,1760043044408,-444.50029205,0.00016438,2]
[390427842,1760043044417,-528.77,0.00016438,2]
[390427844,1760043044426,-227.51302696,0.00016438,2]
[390427846,1760043044435,-500.0,0.00016438,2]
[390427848,1760043044444,-1164.62,0.00016438,2]
[390427850,1760043044453,-500.0,0.00016438,2]
[390427852,1760043044462,-500.0,0.00016438,2]
[390427854,1760043044471,-500.0,0.00016438,2]
[390427856,1760043044484,-500.0,0.00016438,2]
[390427858,1760043044493,-500.0,0.00016438,2]
[390427860,1760043044502,-500.0,0.00016438,2]
[390427862,1760043044511,-500.0,0.00016438,2]
[390427864,1760043044522,-1219.76,0.00016438,2]
[390427866,1760043044531,-500.0,0.00016438,2]
[390427868,1760043044540,-500.0,0.00016438,2]
[390427870,1760043044551,-1054.51,0.00016438,2]
[390427873,1760043044565,-500.0,0.00016438,2]
[390427875,1760043044574,-500.0,0.00016438,2]
[390427876,1760043044585,-500.0,0.00016438,2]
[390427878,1760043044594,-500.0,0.00016438,2]
[390427880,1760043044604,-500.0,0.00016438,2]
[390427882,1760043044613,-500.0,0.00016438,2]
[390427884,1760043044622,-500.0,0.00016438,2]
[390427886,1760043044631,-500.0,0.00016438,2]
[390427888,1760043044641,-500.0,0.00016438,2]
[390427890,1760043044650,-667.31,0.00016438,2]
[390427892,1760043044658,-500.0,0.00016438,2]
[390427894,1760043044667,-500.0,0.00016438,2]
[390427896,1760043044676,-500.0,0.00016438,2]
[390427898,1760043044686,-500.0,0.00016438,2]
[390427900,1760043044695,-500.0,0.00016438,2]
[390427902,1760043044704,-500.0,0.00016438,2]
[390427904,1760043044713,-500.0,0.00016438,2]
[390427906,1760043044722,-500.0,0.00016438,2]
[390427908,1760043044731,-500.0,0.00016438,2]
[390427910,1760043044740,-780.03,0.00016438,2]
[390427912,1760043044749,-830.88,0.00016438,2]
[390427914,1760043044758,-500.0,0.00016438,2]
[390427916,1760043044766,-429.4861772,0.00016438,2]
[390427918,1760043044775,-500.0,0.00016438,2]
[390427920,1760043044785,-202.076936,0.00016438,2]
[390427922,1760043044794,-500.0,0.00016438,2]
[390427924,1760043044802,-829.78,0.00016438,2]
[390427926,1760043044811,-500.0,0.00016438,2]
[390427928,1760043044820,-500.0,0.00016438,2]
[390427930,1760043044829,-785.97,0.00016438,2]
[390427932,1760043044837,-500.0,0.00016438,2]
[390427934,1760043044846,-518.99,0.00016438,2]
[390427936,1760043044855,-500.0,0.00016438,2]
[390427938,1760043044864,-500.0,0.00016438,2]
[390427940,1760043044872,-542.98,0.00016438,2]
[390427942,1760043044881,-500.0,0.00016438,2]
[390427943,1760043044891,-809.33,0.00016438,2]
[390427945,1760043044900,-500.0,0.00016438,2]
[390427947,1760043044909,-500.0,0.00016438,2]
[390427950,1760043044922,-500.0,0.00016438,2]
[390427952,1760043044931,-963.06,0.00016438,2]
[390427954,1760043044940,-500.0,0.00016438,2]
[390427956,1760043044949,-500.0,0.00016438,2]
[390427958,1760043044957,-500.0,0.00016438,2]
[390427960,1760043044966,-500.0,0.00016438,2]
[390427962,1760043044975,-500.0,0.00016438,2]
[390427964,1760043044984,-530.04403008,0.00016438,2]
[390427966,1760043044993,-500.0,0.00016438,2]
[390427968,1760043045002,-375.255269,0.00016438,2]
[390427970,1760043045011,-375.255269,0.00016438,2]
[390427972,1760043045020,-375.255269,0.00016438,2]
[390427974,1760043045029,-2135.01,0.00016438,2]
[390427975,1760043045038,-500.0,0.00016438,2]
[390427977,1760043045048,-375.255269,0.00016438,2]
[390427979,1760043045057,-375.255269,0.00016438,2]
[390427981,1760043045066,-151.0,0.00016438,2]
[390427984,1760043045076,-375.255269,0.00016438,2]
[390427985,1760043045085,-151.0,0.00016438,2]
[390427987,1760043045094,-151.0,0.00016438,2]
[390427989,1760043045104,-375.255269,0.00016438,2]
[390427992,1760043045113,-375.255269,0.00016438,2]
[390427993,1760043045123,-176.188392,0.00016438,2]
[390427996,1760043045132,-375.255269,0.00016438,2]
[390427998,1760043045141,-375.255269,0.00016438,2]
[390428000,1760043045151,-375.255269,0.00016438,2]
[390428002,1760043045160,-375.255272,0.00016438,2]
[390428004,1760043045170,-5637.08,0.00016438,2]
[390428005,1760043045180,-500.0,0.00016438,2]
[390428007,1760043045189,-500.0,0.00016438,2]
[390428009,1760043045199,-500.0,0.00016438,2]
[390428011,1760043045208,-500.0,0.00016438,2]
[390428013,1760043045218,-500.0,0.00016438,2]
[390428016,1760043045228,-500.0,0.00016438,2]
[390428017,1760043045237,-500.0,0.00016438,2]
[390428039,1760043045427,-858.83,0.00016438,2]
[390428041,1760043045437,-500.0,0.00016438,2]
[390428043,1760043045447,-500.0,0.00016438,2]
[390428045,1760043045456,-500.0,0.00016438,2]
[390428047,1760043045466,-1011.74,0.00016438,2]
[390428049,1760043045479,-500.0,0.00016438,2]
[390428051,1760043045488,-500.0,0.00016438,2]
[390428053,1760043045497,-500.0,0.00016438,2]
[390428055,1760043045507,-500.0,0.00016438,2]
[390428057,1760043045518,-500.0,0.00016438,2]
[390428059,1760043045527,-151.0,0.00016438,2]
[390428061,1760043045536,-151.0,0.00016438,2]
[390428063,1760043045545,-151.0,0.00016438,2]
[390428065,1760043045557,-500.0,0.00016438,2]
[390428067,1760043045566,-1636.76,0.00016438,2]
[390428069,1760043045575,-500.0,0.00016438,2]
[390428071,1760043045585,-581.3,0.00016438,2]
[390428073,1760043045594,-500.0,0.00016438,2]
[390428075,1760043045604,-737.85,0.00016438,2]
[390428077,1760043045614,-500.0,0.00016438,2]
[390428079,1760043045624,-500.0,0.00016438,2]
[390428081,1760043045633,-500.0,0.00016438,2]
[390428083,1760043045643,-500.0,0.00016438,2]
[390428085,1760043045652,-500.0,0.00016438,2]
[390428087,1760043045661,-500.0,0.00016438,2]
[390428089,1760043045670,-500.0,0.00016438,2]
[390428091,1760043045679,-500.0,0.00016438,2]
[390428093,1760043045688,-500.0,0.00016438,2]
[390428095,1760043045697,-151.0,0.00016438,2]
[390428097,1760043045706,-1974.49,0.00016438,2]
[390428099,1760043045716,-500.0,0.00016438,2]
[390428101,1760043045725,-500.0,0.00016438,2]
[390428103,1760043045736,-500.0,0.00016438,2]
[390428105,1760043045745,-500.0,0.00016438,2]
[390428106,1760043045756,-500.0,0.00016438,2]
[390428107,1760043045766,-500.0,0.00016438,2]
[390428108,1760043045776,-500.0,0.00016438,2]
[390428109,1760043045785,-340.47575403,0.00016438,2]
[390428110,1760043045795,-500.0,0.00016438,2]
[390428111,1760043045804,-500.0,0.00016438,2]
[390428113,1760043045815,-500.0,0.00016438,2]
[390428116,1760043045824,-500.0,0.00016438,2]
[390428118,1760043045834,-500.0,0.00016438,2]
[390428120,1760043045843,-500.0,0.00016438,2]
[390428122,1760043045851,-3962.46,0.00016438,2]
[390428124,1760043045861,-500.0,0.00016438,2]
[390428126,1760043045870,-500.0,0.00016438,2]
[390428128,1760043045879,-500.0,0.00016438,2]
[390428130,1760043045888,-473.5268893,0.00016438,2]
[390428132,1760043045897,-2339.63,0.00016438,2]
[390428134,1760043045907,-500.0,0.00016438,2]
[390428136,1760043045917,-721.68,0.00016438,2]
[390428138,1760043045926,-1000.0,0.00016438,2]
[390428140,1760043045936,-151.0,0.00016438,2]
[390428142,1760043045945,-151.0,0.00016438,2]
[390428144,1760043045954,-151.0,0.00016438,2]
[390428146,1760043045963,-151.0,0.00016438,2]
[390428148,1760043045972,-151.0,0.00016438,2]
[390428150,1760043045982,-151.0,0.00016438,2]
[390428152,1760043045992,-151.0,0.00016438,2]
[390428154,1760043046001,-151.0,0.00016438,2]
[390428156,1760043046010,-226.1552,0.00016438,2]
[390428158,1760043046019,-152.939898,0.00016438,2]
[390428160,1760043046028,-256.17732029,0.00016438,2]
[390428162,1760043046037,-474.0,0.00016463,2]
[390428164,1760043046046,-500.0,0.00016473,2]
[390428166,1760043046056,-496.20570111,0.00016473,2]
[390428168,1760043046065,-214.18640301,0.00016473,2]
[390428170,1760043046075,-500.0,0.00016473,2]
[390428172,1760043046084,-500.0,0.00016473,2]
[390428174,1760043046093,-500.0,0.00016473,2]
[390428176,1760043046103,-351.47199974,0.00016473,2]
[390428179,1760043046113,-500.0,0.00016473,2]
[390428181,1760043046124,-500.27369446,0.00016473,2]
[390428183,1760043046133,-500.38409465,0.00016473,2]
[390428185,1760043046143,-500.0,0.00016473,2]
[390428188,1760043046152,-500.0,0.00016473,2]
[390428190,1760043046162,-510.58546687,0.00016473,2]
[390428192,1760043046171,-642.46180802,0.00016473,2]
[390428194,1760043046180,-500.0,0.00016473,2]
[390428196,1760043046189,-500.0,0.00016473,2]
[390428198,1760043046198,-500.0,0.00016473,2]
[390428200,1760043046208,-501.03686346,0.00016473,2]
[390428202,1760043046216,-500.0,0.00016473,2]
[390428204,1760043046226,-500.0,0.00016473,2]
[390428206,1760043046235,-500.0,0.00016473,2]
[390428208,1760043046246,-500.24534212,0.00016473,2]
[390428210,1760043046255,-500.0,0.00016473,2]
[390428212,1760043046264,-165.21529698,0.00016473,2]
[390428214,1760043046273,-500.0,0.00016473,2]
[390428216,1760043046282,-500.75919098,0.00016473,2]
[390428218,1760043046291,-500.0,0.00016473,2]
[390428220,1760043046301,-500.0,0.00016473,2]
[390428222,1760043046310,-500.0,0.00016473,2]
[390428224,1760043046319,-201.261485,0.00016473,2]
[390428226,1760043046329,-200.26463029,0.00016473,2]
[390428228,1760043046338,-200.38484859,0.00016473,2]
[390428230,1760043046347,-500.0,0.00016473,2]
[390428231,1760043046356,-500.0,0.00016473,2]
[390428233,1760043046366,-500.0,0.00016473,2]
[390428235,1760043046375,-500.0,0.00016473,2]
[390428237,1760043046384,-500.0,0.00016473,2]
[390428239,1760043046394,-500.0,0.00016473,2]
[390428241,1760043046403,-375.22976713,0.00016473,2]
[390428243,1760043046412,-500.0,0.00016473,2]
[390428245,1760043046421,-183.62263881,0.00016473,2]
[390428247,1760043046430,-500.0,0.00016473,2]
[390428249,1760043046439,-500.0,0.00016473,2]
[390428251,1760043046448,-215.06514168,0.00016473,2]
[390428253,1760043046456,-500.0,0.00016473,2]
[390428255,1760043046466,-500.0,0.00016473,2]
[390428257,1760043046476,-500.0,0.00016473,2]
[390428259,1760043046488,-500.0,0.00016473,2]
[390428261,1760043046497,-500.0,0.00016473,2]
[390428263,1760043046506,-500.0,0.00016473,2]
[390428265,1760043046515,-500.0,0.00016473,2]
[390428267,1760043046525,-500.0,0.00016473,2]
[390428269,1760043046534,-200.26101951,0.00016473,2]
[390428271,1760043046543,-159.69156247,0.00016473,2]
[390428273,1760043046554,-500.0,0.00016473,2]
[390428275,1760043046563,-500.0,0.00016473,2]
[390428277,1760043046572,-500.0,0.00016473,2]
[390428279,1760043046582,-261.47093422,0.00016473,2]
[390428281,1760043046591,-183.09846624,0.00016473,2]
[390428283,1760043046600,-500.37089015,0.00016473,2]
[390428285,1760043046609,-500.0,0.00016473,2]
[390428287,1760043046618,-503.42885229,0.00016473,2]
[390428289,1760043046627,-500.0,0.00016473,2]
[390428291,1760043046636,-500.0,0.00016473,2]
[390428293,1760043046645,-500.0,0.00016473,2]
[390428295,1760043046654,-500.0,0.00016473,2]
[390428297,1760043046663,-500.0,0.00016473,2]
[390428299,1760043046673,-500.0,0.00016473,2]
[390428301,1760043046682,-229.48738963,0.00016473,2]
[390428303,1760043046691,-500.0,0.00016473,2]
[390428305,1760043046700,-500.0,0.00016473,2]
[390428307,1760043046710,-500.0,0.00016473,2]
[390428309,1760043046721,-207.86483614,0.00016473,2]
[390428311,1760043046731,-169.37416212,0.00016473,2]
[390428313,1760043046741,-151.0,0.00016509,2]
[390428315,1760043046750,-292.18597478,0.00016509,2]
[390428317,1760043046759,-151.0,0.00016509,2]
[390428319,1760043046768,-500.0,0.00016509,2]
[390428321,1760043046778,-500.0,0.0001651,2]
[390428323,1760043046787,-500.0,0.0001651,2]
[390428325,1760043046796,-151.0,0.00016548,2]
[390428327,1760043046805,-151.0,0.00016608,2]
[390428329,1760043046814,-151.0,0.00016608,2]
[390428331,1760043046823,-176.96952833,0.00016612,2]
[390428332,1760043046832,-300.0,0.00016664,2]
[390428335,1760043046841,-300.0,0.00016664,2]
[390428336,1760043046851,-300.0,0.00016664,2]
[390428338,1760043046860,-300.0,0.00016664,2]
[390428340,1760043046869,-300.0,0.00016664,2]
[390428342,1760043046878,-300.0,0.00016664,2]
[390428344,1760043046886,-300.0,0.00016664,2]
[390428346,1760043046895,-300.0,0.00016664,2]
[390428348,1760043046905,-300.0,0.00016664,2]
[390428350,1760043046914,-300.0,0.00016664,2]
[390428352,1760043046923,-300.0,0.00016664,2]
[390428355,1760043046933,-300.0,0.00016664,2]
[390428357,1760043046942,-300.0,0.00016664,2]
[390428359,1760043046952,-300.0,0.00016664,2]
[390428361,1760043046962,-300.0,0.00016664,2]
[390428363,1760043046971,-600.0,0.00016664,2]
[390428365,1760043046980,-500.0,0.00016712,2]
[390428367,1760043046990,-500.0,0.00016712,2]
[390428369,1760043046999,-500.0,0.00016712,2]
[390428371,1760043047008,-500.0,0.00016712,2]
[390428373,1760043047017,-500.0,0.00016712,2]
[390428375,1760043047026,-183.14,0.00016712,2]
[390428377,1760043047035,-500.0,0.00016712,2]
[390428379,1760043047044,-500.0,0.00016712,2]
[390428381,1760043047055,-500.0,0.00016712,2]
[390428383,1760043047064,-500.0,0.00016712,2]
[390428385,1760043047074,-163.48,0.00016712,2]
[390428387,1760043047083,-500.0,0.00016712,2]
[390428389,1760043047091,-500.0,0.00016712,2]
[390428391,1760043047101,-500.0,0.00016712,2]
[390428393,1760043047111,-500.0,0.00016712,2]
[390428395,1760043047120,-500.0,0.00016712,2]
[390428397,1760043047129,-500.0,0.00016712,2]
[390428398,1760043047138,-500.0,0.00016712,2]
[390428400,1760043047148,-500.0,0.00016712,2]
[390428402,1760043047157,-500.0,0.00016712,2]
[390428404,1760043047165,-500.0,0.00016712,2]
[390428406,1760043047175,-500.0,0.00016712,2]
[390428408,1760043047184,-500.0,0.00016712,2]
[390428410,1760043047193,-500.0,0.00016712,2]
[390428412,1760043047202,-500.0,0.00016712,2]
[390428414,1760043047211,-500.0,0.00016712,2]
[390428416,1760043047221,-500.0,0.00016712,2]
[390428418,1760043047230,-500.0,0.00016712,2]
[390428420,1760043047238,-500.0,0.00016712,2]
[390428422,1760043047247,-1640.13,0.00016712,2]
[390428424,1760043047257,-500.0,0.00016712,2]
[390428426,1760043047266,-545.74,0.00016712,2]
[390428428,1760043047275,-500.0,0.00016712,2]
[390428430,1760043047284,-500.0,0.00016712,2]
[390428432,1760043047293,-500.0,0.00016712,2]
[390428434,1760043047302,-500.0,0.00016712,2]
[390428436,1760043047311,-500.0,0.00016712,2]
[390428438,1760043047321,-500.0,0.00016712,2]
[390428440,1760043047329,-500.0,0.00016712,2]
[390428442,1760043047338,-500.0,0.00016712,2]
[390428444,1760043047347,-500.0,0.00016712,2]
[390428446,1760043047356,-500.0,0.00016712,2]
[390428448,1760043047365,-500.0,0.00016712,2]
[390428450,1760043047374,-500.0,0.00016712,2]
[390428452,1760043047383,-500.0,0.00016712,2]
[390428454,1760043047393,-546.34,0.00016712,2]
[390428456,1760043047403,-500.0,0.00016712,2]
[390428458,1760043047412,-500.0,0.00016712,2]
[390428460,1760043047421,-500.0,0.00016712,2]
[390428462,1760043047430,-500.0,0.00016712,2]
[390428464,1760043047439,-500.0,0.00016712,2]
[390428466,1760043047448,-500.0,0.00016712,2]
[390428468,1760043047457,-500.0,0.00016712,2]
[390428470,1760043047466,-500.0,0.00016712,2]
[390428472,1760043047479,-500.0,0.00016712,2]
[390428474,1760043047488,-500.0,0.00016712,2]
[390428476,1760043047497,-500.0,0.00016712,2]
[390428478,1760043047506,-500.0,0.00016712,2]
[390428480,1760043047516,-1637.82,0.00016712,2]
[390428482,1760043047525,-500.0,0.00016712,2]
[390428484,1760043047534,-593.95,0.00016712,2]
[390428486,1760043047543,-200.11,0.00016712,2]
[390428488,1760043047553,-221.55,0.00016712,2]
[390428490,1760043047562,-598.73,0.00016712,2]
[390428492,1760043047571,-500.0,0.00016712,2]
[390428494,1760043047580,-500.0,0.00016712,2]
[390428496,1760043047589,-500.0,0.00016712,2]
[390428497,1760043047598,-500.0,0.00016712,2]
[390428499,1760043047607,-205.77,0.00016712,2]
[390428501,1760043047616,-500.0,0.00016712,2]
[390428503,1760043047626,-500.0,0.00016712,2]
[390428510,1760043047634,-500.0,0.00016712,2]
[390428512,1760043047690,-500.0,0.00016712,2]
[390428514,1760043047700,-384.88020097,0.00016712,2]
[390428516,1760043047709,-153.24,0.00016712,2]
[390428518,1760043047718,-631.85,0.00016712,2]
[390428520,1760043047727,-500.0,0.00016712,2]
[390428522,1760043047737,-523.36,0.00016712,2]
[390428524,1760043047746,-905.94,0.00016712,2]
[390428526,1760043047756,-742.67,0.00016712,2]
[390428528,1760043047766,-501.34274589,0.00016712,2]
[390428530,1760043047775,-357.97,0.00016712,2]
[390428532,1760043047785,-374.95,0.00016712,2]
[390428534,1760043047794,-500.0,0.00016712,2]
[390428536,1760043047802,-500.0,0.00016712,2]
[390428538,1760043047812,-223.85,0.00016712,2]
[390428540,1760043047821,-602.39,0.00016712,2]
[390428542,1760043047831,-269.74,0.00016712,2]
[390428544,1760043047839,-500.0,0.00016712,2]
[390428546,1760043047848,-532.73,0.00016712,2]
[390428548,1760043047856,-476.41,0.00016712,2]
[390428550,1760043047867,-500.0,0.00016712,2]
[390428552,1760043047876,-500.0,0.00016712,2]
[390428554,1760043047885,-500.0,0.00016712,2]
[390428556,1760043047894,-500.0,0.00016712,2]
[390428558,1760043047903,-689.91,0.00016712,2]
[390428560,1760043047912,-500.0,0.00016712,2]
[390428562,1760043047921,-500.0,0.00016712,2]
[390428564,1760043047930,-500.0,0.00016712,2]
[390428566,1760043047939,-434.22,0.00016712,2]
[390428568,1760043047948,-458.99,0.00016712,2]
[390428570,1760043047959,-500.0,0.00016712,2]
[390428572,1760043047968,-500.0,0.00016712,2]
[390428574,1760043047977,-424.07,0.00016712,2]
[390428576,1760043047986,-500.0,0.00016712,2]
[390428577,1760043047995,-500.0,0.00016712,2]
[390428579,1760043048004,-500.0,0.00016712,2]
[390428581,1760043048012,-440.95,0.00016712,2]
[390428583,1760043048021,-539.62,0.00016712,2]
[390428585,1760043048030,-500.0,0.00016712,2]
[390428587,1760043048039,-500.0,0.00016712,2]
[390428589,1760043048049,-537.86,0.00016712,2]
[390428591,1760043048058,-500.0,0.00016712,2]
[390428593,1760043048067,-500.0,0.00016712,2]
[390428595,1760043048076,-500.0,0.00016712,2]
[390428597,1760043048085,-500.0,0.00016712,2]
[390428599,1760043048094,-500.0,0.00016712,2]
[390428601,1760043048103,-440.84,0.00016712,2]
[390428603,1760043048112,-817.32,0.00016712,2]
[390428605,1760043048120,-500.0,0.00016712,2]
[390428607,1760043048129,-500.0,0.00016712,2]
[390428608,1760043048138,-558.26,0.00016712,2]
[390428610,1760043048147,-500.0,0.00016712,2]
[390428612,1760043048157,-343.66,0.00016712,2]
[390428614,1760043048166,-2250.3,0.00016712,2]
[390428616,1760043048175,-609.91,0.00016712,2]
[390428618,1760043048184,-500.0,0.00016712,2]
[390428620,1760043048193,-500.00000003,0.00016712,2]
[390428622,1760043048202,-500.0,0.00016712,2]
[390428624,1760043048212,-583.55,0.00016712,2]
[390428626,1760043048221,-500.0,0.00016712,2]
[390428628,1760043048230,-194.02,0.00016712,2]
[390428630,1760043048239,-500.0,0.00016712,2]
[390428632,1760043048248,-460.44919195,0.00016712,2]
[390428634,1760043048258,-500.0,0.00016712,2]
[390428636,1760043048267,-322.57,0.00016712,2]
[390428638,1760043048276,-500.0,0.00016712,2]
[390428640,1760043048285,-500.0,0.00016712,2]
[390428642,1760043048294,-500.0,0.00016712,2]
[390428644,1760043048304,-267.94,0.00016712,2]
[390428646,1760043048315,-500.0,0.00016712,2]
[390428648,1760043048325,-500.0,0.00016712,2]
[390428650,1760043048335,-500.0,0.00016712,2]
[390428652,1760043048344,-602.36,0.00016712,2]
[390428654,1760043048354,-500.0,0.00016712,2]
[390428656,1760043048364,-430.69503227,0.00016712,2]
[390428658,1760043048374,-500.0,0.00016712,2]
[390428660,1760043048384,-500.0,0.00016712,2]
[390428662,1760043048394,-500.0,0.00016712,2]
[390428664,1760043048403,-2059.56,0.00016712,2]
[390428666,1760043048413,-535.87825357,0.00016712,2]
[390428668,1760043048423,-270.93,0.00016712,2]
[390428670,1760043048433,-500.0,0.00016712,2]
[390428672,1760043048443,-500.0,0.00016712,2]
[390428673,1760043048452,-500.0,0.00016712,2]
[390428674,1760043048461,-500.0,0.00016712,2]
[390428675,1760043048471,-201.04,0.00016712,2]
[390428676,1760043048486,-500.0,0.00016712,2]
[390428677,1760043048498,-500.0,0.00016712,2]
[390428678,1760043048508,-776.37,0.00016712,2]
[390428679,1760043048519,-319.38677579,0.00016712,2]
[390428680,1760043048530,-500.0,0.00016712,2]
[390428681,1760043048539,-500.0,0.00016712,2]
[390428682,1760043048549,-500.0,0.00016712,2]
[390428683,1760043048561,-500.0,0.00016712,2]
[390428684,1760043048571,-500.0,0.00016712,2]
[390428685,1760043048580,-2184.17,0.00016712,2]
[390428686,1760043048590,-500.0,0.00016712,2]
[390428687,1760043048600,-500.0,0.00016712,2]
[390428689,1760043048611,-500.0,0.00016712,2]
[390428691,1760043048621,-500.0,0.00016712,2]
[390428693,1760043048631,-322.9,0.00016712,2]
[390428695,1760043048640,-500.0,0.00016712,2]
[390428697,1760043048650,-500.0,0.00016712,2]
[390428699,1760043048660,-500.0,0.00016712,2]
[390428701,1760043048670,-532.3,0.00016712,2]
[390428703,1760043048680,-500.0,0.00016712,2]
[390428705,1760043048690,-500.0,0.00016712,2]
[390428707,1760043048700,-500.0,0.00016712,2]
[390428709,1760043048710,-500.0,0.00016712,2]
[390428712,1760043048720,-664.28,0.00016712,2]
[390428714,1760043048730,-500.0,0.00016712,2]
[390428716,1760043048741,-500.0,0.00016712,2]
[390428718,1760043048750,-608.10212958,0.00016712,2]
[390428720,1760043048760,-273.24,0.00016712,2]
[390428722,1760043048770,-500.0,0.00016712,2]
[390428724,1760043048779,-580.41,0.00016712,2]
[390428726,1760043048789,-500.0,0.00016712,2]
[390428728,1760043048800,-500.0,0.00016712,2]
[390428730,1760043048809,-521.8,0.00016712,2]
[390428732,1760043048819,-524.96,0.00016712,2]
[390428734,1760043048829,-583.5,0.00016712,2]
[390428736,1760043048839,-635.28,0.00016712,2]
[390428738,1760043048849,-500.0,0.00016712,2]
[390428741,1760043048860,-500.0,0.00016712,2]
[390428743,1760043048870,-874.17,0.00016712,2]
[390428745,1760043048880,-546.5,0.00016712,2]
[390428747,1760043048890,-174.78,0.00016712,2]
[390428749,1760043048900,-636.25,0.00016712,2]
[390428751,1760043048910,-281.65,0.00016712,2]
[390428753,1760043048920,-628.04,0.00016712,2]
[390428755,1760043048930,-500.0,0.00016712,2]
[390428757,1760043048940,-820.19,0.00016712,2]
[390428759,1760043048950,-815.62,0.00016712,2]
[390428761,1760043048959,-500.0,0.00016712,2]
[390428763,1760043048969,-500.0,0.00016712,2]
[390428765,1760043048979,-3835.67,0.00016712,2]
[390428767,1760043048989,-500.0,0.00016712,2]
[390428770,1760043048999,-500.0,0.00016712,2]
[390428772,1760043049009,-361.68,0.00016712,2]
[390428774,1760043049020,-500.0,0.00016712,2]
[390428776,1760043049030,-895.85,0.00016712,2]
[390428778,1760043049040,-500.0,0.00016712,2]
[390428780,1760043049049,-170.6,0.00016712,2]
[390428782,1760043049060,-238.18,0.00016712,2]
[390428784,1760043049070,-500.0,0.00016712,2]
[390428786,1760043049080,-500.0,0.00016712,2]
[390428788,1760043049090,-500.0,0.00016712,2]
[390428790,1760043049100,-2139.37,0.00016712,2]
[390428793,1760043049111,-500.0,0.00016712,2]
[390428795,1760043049121,-500.0,0.00016712,2]
[390428797,1760043049131,-169.94,0.00016712,2]
[390428799,1760043049141,-500.0,0.00016712,2]
[390428801,1760043049151,-575.74,0.00016712,2]
[390428803,1760043049162,-500.0,0.00016712,2]
[390428805,1760043049173,-6275.11,0.00016712,2]
[390428807,1760043049183,-500.0,0.00016712,2]
[390428809,1760043049193,-613.50985378,0.00016712,2]
[390428811,1760043049204,-561.41,0.00016712,2]
[390428813,1760043049214,-2748.55,0.00016712,2]
[390428816,1760043049224,-500.0,0.00016712,2]
[390428818,1760043049235,-500.0,0.00016712,2]
[390428820,1760043049246,-6651.32,0.00016712,2]
[390428822,1760043049255,-651.95,0.00016712,2]